Workbook

Sheet 대시보드
N1: =BudgetName&" 대화형 예산" -> 2012년 오태준님 가계 대화형 예산
A3: ='차트 데이터'!C38 -> ₩4,000,000
D5: 수입
A7: ='차트 데이터'!C39 -> ₩5,933,000
D9: 지출
A11: ='차트 데이터'!D40& "₩"&'차트 데이터'!C40 -> -₩1933000
D13: 현금 흐름

Sheet 예산
C1: 1월 | D1: 2월 | E1: 3월 | F1: 4월 | G1: 5월 | H1: 6월 | I1: 7월 | J1: 8월 | K1: 9월 | L1: 10월 | M1: 11월 | N1: 12월 | O1: 연간 | P1: 평균
B5: 시작 잔고 | C5: 1,000,000
B6: 총 수입 | C6: =SUM(tblIncome[jan]) -> 4,222,000 | D6: =SUM(tblIncome[feb]) -> 9,033,000 | E6: =SUM(tblIncome[mar]) -> 4,000,000 | F6: =SUM(tblIncome[apr]) -> 4,045,000 | G6: =SUM(tblIncome[may]) -> 9,000,000 | H6: =SUM(tblIncome[jun]) -> 1,525,000 | I6: =SUM(tblIncome[jul]) -> 1,500,000 | J6: =SUM(tblIncome[aug]) -> 6,500,000 | K6: =SUM(tblIncome[sep]) -> 4,000,000 | L6: =SUM(tblIncome[oct]) -> 4,000,000 | M6: =SUM(tblIncome[nov]) -> 9,000,000 | N6: =SUM(tblIncome[dec]) -> 4,000,000 | O6: =SUM(tblIncome[year]) -> 60,825,000 | P6: =O6/12 -> 5,068,750
B7: 총 지출 | C7: =SUM(tblExpenseCategory_01[jan],tblExpenseCategory_02[jan],tblExpenseCategory_03[jan],tblExpenseCategory_04[jan],tblExpenseCategory_05[jan],tblExpenseCategory_06[jan],tblExpenseCategory_07[jan],tblExpenseCategory_08[jan],tblExpenseCategory_09[jan],tblExpenseCategory_10[jan],tblExpenseCategory_11[jan],tblExpenseCategory_12[jan],tblExpenseCategory_13[jan],tblExpenseCategory_14[jan],tblExpenseCategory_15[jan]) -> 7,936,000 | D7: =SUM(tblExpenseCategory_01[feb],tblExpenseCategory_02[feb],tblExpenseCategory_03[feb],tblExpenseCategory_04[feb],tblExpenseCategory_05[feb],tblExpenseCategory_06[feb],tblExpenseCategory_07[feb],tblExpenseCategory_08[feb],tblExpenseCategory_09[feb],tblExpenseCategory_10[feb],tblExpenseCategory_11[feb],tblExpenseCategory_12[feb],tblExpenseCategory_13[feb],tblExpenseCategory_14[feb],tblExpenseCategory_15[feb]) -> 5,243,000 | E7: =SUM(tblExpenseCategory_01[mar],tblExpenseCategory_02[mar],tblExpenseCategory_03[mar],tblExpenseCategory_04[mar],tblExpenseCategory_05[mar],tblExpenseCategory_06[mar],tblExpenseCategory_07[mar],tblExpenseCategory_08[mar],tblExpenseCategory_09[mar],tblExpenseCategory_10[mar],tblExpenseCategory_11[mar],tblExpenseCategory_12[mar],tblExpenseCategory_13[mar],tblExpenseCategory_14[mar],tblExpenseCategory_15[mar]) -> 5,933,000 | F7: =SUM(tblExpenseCategory_01[apr],tblExpenseCategory_02[apr],tblExpenseCategory_03[apr],tblExpenseCategory_04[apr],tblExpenseCategory_05[apr],tblExpenseCategory_06[apr],tblExpenseCategory_07[apr],tblExpenseCategory_08[apr],tblExpenseCategory_09[apr],tblExpenseCategory_10[apr],tblExpenseCategory_11[apr],tblExpenseCategory_12[apr],tblExpenseCategory_13[apr],tblExpenseCategory_14[apr],tblExpenseCategory_15[apr]) -> 5,858,000 | G7: =SUM(tblExpenseCategory_01[may],tblExpenseCategory_02[may],tblExpenseCategory_03[may],tblExpenseCategory_04[may],tblExpenseCategory_05[may],tblExpenseCategory_06[may],tblExpenseCategory_07[may],tblExpenseCategory_08[may],tblExpenseCategory_09[may],tblExpenseCategory_10[may],tblExpenseCategory_11[may],tblExpenseCategory_12[may],tblExpenseCategory_13[may],tblExpenseCategory_14[may],tblExpenseCategory_15[may]) -> 5,468,000 | H7: =SUM(tblExpenseCategory_01[jun],tblExpenseCategory_02[jun],tblExpenseCategory_03[jun],tblExpenseCategory_04[jun],tblExpenseCategory_05[jun],tblExpenseCategory_06[jun],tblExpenseCategory_07[jun],tblExpenseCategory_08[jun],tblExpenseCategory_09[jun],tblExpenseCategory_10[jun],tblExpenseCategory_11[jun],tblExpenseCategory_12[jun],tblExpenseCategory_13[jun],tblExpenseCategory_14[jun],tblExpenseCategory_15[jun]) -> 5,118,000 | I7: =SUM(tblExpenseCategory_01[jul],tblExpenseCategory_02[jul],tblExpenseCategory_03[jul],tblExpenseCategory_04[jul],tblExpenseCategory_05[jul],tblExpenseCategory_06[jul],tblExpenseCategory_07[jul],tblExpenseCategory_08[jul],tblExpenseCategory_09[jul],tblExpenseCategory_10[jul],tblExpenseCategory_11[jul],tblExpenseCategory_12[jul],tblExpenseCategory_13[jul],tblExpenseCategory_14[jul],tblExpenseCategory_15[jul]) -> 5,743,000 | J7: =SUM(tblExpenseCategory_01[aug],tblExpenseCategory_02[aug],tblExpenseCategory_03[aug],tblExpenseCategory_04[aug],tblExpenseCategory_05[aug],tblExpenseCategory_06[aug],tblExpenseCategory_07[aug],tblExpenseCategory_08[aug],tblExpenseCategory_09[aug],tblExpenseCategory_10[aug],tblExpenseCategory_11[aug],tblExpenseCategory_12[aug],tblExpenseCategory_13[aug],tblExpenseCategory_14[aug],tblExpenseCategory_15[aug]) -> 5,353,000 | K7: =SUM(tblExpenseCategory_01[sep],tblExpenseCategory_02[sep],tblExpenseCategory_03[sep],tblExpenseCategory_04[sep],tblExpenseCategory_05[sep],tblExpenseCategory_06[sep],tblExpenseCategory_07[sep],tblExpenseCategory_08[sep],tblExpenseCategory_09[sep],tblExpenseCategory_10[sep],tblExpenseCategory_11[sep],tblExpenseCategory_12[sep],tblExpenseCategory_13[sep],tblExpenseCategory_14[sep],tblExpenseCategory_15[sep]) -> 5,983,000 | L7: =SUM(tblExpenseCategory_01[oct],tblExpenseCategory_02[oct],tblExpenseCategory_03[oct],tblExpenseCategory_04[oct],tblExpenseCategory_05[oct],tblExpenseCategory_06[oct],tblExpenseCategory_07[oct],tblExpenseCategory_08[oct],tblExpenseCategory_09[oct],tblExpenseCategory_10[oct],tblExpenseCategory_11[oct],tblExpenseCategory_12[oct],tblExpenseCategory_13[oct],tblExpenseCategory_14[oct],tblExpenseCategory_15[oct]) -> 5,943,000 | M7: =SUM(tblExpenseCategory_01[nov],tblExpenseCategory_02[nov],tblExpenseCategory_03[nov],tblExpenseCategory_04[nov],tblExpenseCategory_05[nov],tblExpenseCategory_06[nov],tblExpenseCategory_07[nov],tblExpenseCategory_08[nov],tblExpenseCategory_09[nov],tblExpenseCategory_10[nov],tblExpenseCategory_11[nov],tblExpenseCategory_12[nov],tblExpenseCategory_13[nov],tblExpenseCategory_14[nov],tblExpenseCategory_15[nov]) -> 5,058,000 | N7: =SUM(tblExpenseCategory_01[dec],tblExpenseCategory_02[dec],tblExpenseCategory_03[dec],tblExpenseCategory_04[dec],tblExpenseCategory_05[dec],tblExpenseCategory_06[dec],tblExpenseCategory_07[dec],tblExpenseCategory_08[dec],tblExpenseCategory_09[dec],tblExpenseCategory_10[dec],tblExpenseCategory_11[dec],tblExpenseCategory_12[dec],tblExpenseCategory_13[dec],tblExpenseCategory_14[dec],tblExpenseCategory_15[dec]) -> 4,958,000 | O7: =SUM(tblExpenseCategory_01[year],tblExpenseCategory_02[year],tblExpenseCategory_03[year],tblExpenseCategory_04[year],tblExpenseCategory_05[year],tblExpenseCategory_06[year],tblExpenseCategory_07[year],tblExpenseCategory_08[year],tblExpenseCategory_09[year],tblExpenseCategory_10[year],tblExpenseCategory_11[year],tblExpenseCategory_12[year],tblExpenseCategory_13[year],tblExpenseCategory_14[year],tblExpenseCategory_15[year]) -> 68,594,000 | P7: =O7/12 -> 5,716,167
B8: 순이익 | C8: =C6-C7 -> -3,714,000 | D8: =D6-D7 -> 3,790,000 | E8: -1,933,000 | F8: -1,813,000 | G8: 3,532,000 | H8: -3,593,000 | I8: -4,243,000 | J8: 1,147,000 | K8: -1,983,000 | L8: -1,943,000 | M8: 3,942,000 | N8: -958,000 | O8: -7,769,000 | P8: =O8/12 -> -647,417
B9: 현금 흐름 합계 | C9: =C5+C6-C7 -> -2,714,000 | D9: =C9+D6-D7 -> 1,076,000 | E9: =D9+E6-E7 -> -857,000 | F9: -2,670,000 | G9: 862,000 | H9: -2,731,000 | I9: -6,974,000 | J9: -5,827,000 | K9: -7,810,000 | L9: -9,753,000 | M9: -5,811,000 | N9: -6,769,000
B12: 수입
B13: 급여 및 보너스 | C13: 4,000,000 | D13: 4,000,000 | E13: 4,000,000 | F13: 4,000,000 | G13: 4,000,000 | H13: 1,000,000 | I13: 1,000,000 | J13: 1,000,000 | K13: 4,000,000 | L13: 4,000,000 | M13: 4,000,000 | N13: 4,000,000 | O13: =SUM(tblIncome[[#This Row],[jan]:[dec]]) -> 39,000,000 | P13: =tblIncome[[#This Row],[year]]/12 -> 3,250,000
B14: 이자 소득 | C14: 222,000 | D14: 33,000 | F14: 45,000 | H14: 25,000 | O14: =SUM(tblIncome[[#This Row],[jan]:[dec]]) -> 325,000 | P14: =tblIncome[[#This Row],[year]]/12 -> 27,083
B15: 배당금 | D15: 5,000,000 | G15: 5,000,000 | J15: 5,000,000 | M15: 5,000,000 | O15: =SUM(tblIncome[[#This Row],[jan]:[dec]]) -> 20,000,000 | P15: =tblIncome[[#This Row],[year]]/12 -> 1,666,667
B16: 환불/배상 | H16: 500,000 | I16: 500,000 | J16: 500,000 | O16: =SUM(tblIncome[[#This Row],[jan]:[dec]]) -> 1,500,000 | P16: =tblIncome[[#This Row],[year]]/12 -> 125,000
B17: 기타 | O17: =SUM(tblIncome[[#This Row],[jan]:[dec]]) -> 0 | P17: =tblIncome[[#This Row],[year]]/12 -> 0
B18: =UPPER(B12&" 합계") -> 수입 합계 | C18: =SUM(tblIncome[jan]) -> 4,222,000 | D18: =SUM(tblIncome[feb]) -> 9,033,000 | E18: =SUM(tblIncome[mar]) -> 4,000,000 | F18: =SUM(tblIncome[apr]) -> 4,045,000 | G18: =SUM(tblIncome[may]) -> 9,000,000 | H18: =SUM(tblIncome[jun]) -> 1,525,000 | I18: =SUM(tblIncome[jul]) -> 1,500,000 | J18: =SUM(tblIncome[aug]) -> 6,500,000 | K18: =SUM(tblIncome[sep]) -> 4,000,000 | L18: =SUM(tblIncome[oct]) -> 4,000,000 | M18: =SUM(tblIncome[nov]) -> 9,000,000 | N18: =SUM(tblIncome[dec]) -> 4,000,000 | O18: =SUM(tblIncome[year]) -> 60,825,000 | P18: =tblIncome[[#Totals],[year]]/12 -> 5,068,750
B21: 주거
B22: 담보 대출/임대료 | C22: 850,000 | D22: 850,000 | E22: 850,000 | F22: 850,000 | G22: 850,000 | H22: 850,000 | I22: 850,000 | J22: 850,000 | K22: 850,000 | L22: 850,000 | M22: 900,000 | N22: 900,000 | O22: =SUM(tblExpenseCategory_01[[#This Row],[jan]:[dec]]) -> 10,300,000 | P22: =tblExpenseCategory_01[[#This Row],[year]]/12 -> 858,333
B23: 전기 | C23: 200,000 | D23: 200,000 | E23: 175,000 | F23: 150,000 | G23: 150,000 | H23: 175,000 | I23: 225,000 | J23: 275,000 | K23: 200,000 | L23: 150,000 | M23: 150,000 | N23: 150,000 | O23: =SUM(tblExpenseCategory_01[[#This Row],[jan]:[dec]]) -> 2,200,000 | P23: =tblExpenseCategory_01[[#This Row],[year]]/12 -> 183,333
B24: 전화 | C24: 50,000 | D24: 50,000 | E24: 100,000 | F24: 100,000 | G24: 50,000 | H24: 50,000 | I24: 100,000 | J24: 100,000 | K24: 50,000 | L24: 50,000 | M24: 50,000 | N24: 50,000 | O24: =SUM(tblExpenseCategory_01[[#This Row],[jan]:[dec]]) -> 800,000 | P24: =tblExpenseCategory_01[[#This Row],[year]]/12 -> 66,667
B25: 케이블/위성 | C25: 69,000 | D25: 69,000 | E25: 69,000 | F25: 69,000 | G25: 69,000 | H25: 69,000 | I25: 69,000 | J25: 69,000 | K25: 69,000 | L25: 69,000 | M25: 69,000 | N25: 69,000 | O25: =SUM(tblExpenseCategory_01[[#This Row],[jan]:[dec]]) -> 828,000 | P25: =tblExpenseCategory_01[[#This Row],[year]]/12 -> 69,000
B26: 인터넷 | C26: 39,000 | D26: 39,000 | E26: 39,000 | F26: 39,000 | G26: 39,000 | H26: 39,000 | I26: 39,000 | J26: 39,000 | K26: 39,000 | L26: 39,000 | M26: 39,000 | N26: 39,000 | O26: =SUM(tblExpenseCategory_01[[#This Row],[jan]:[dec]]) -> 468,000 | P26: =tblExpenseCategory_01[[#This Row],[year]]/12 -> 39,000
B27: =UPPER(B21&" 합계") -> 주거 합계 | C27: =SUM(tblExpenseCategory_01[jan]) -> 1,208,000 | D27: =SUM(tblExpenseCategory_01[feb]) -> 1,208,000 | E27: =SUM(tblExpenseCategory_01[mar]) -> 1,233,000 | F27: =SUM(tblExpenseCategory_01[apr]) -> 1,208,000 | G27: =SUM(tblExpenseCategory_01[may]) -> 1,158,000 | H27: =SUM(tblExpenseCategory_01[jun]) -> 1,183,000 | I27: =SUM(tblExpenseCategory_01[jul]) -> 1,283,000 | J27: =SUM(tblExpenseCategory_01[aug]) -> 1,333,000 | K27: =SUM(tblExpenseCategory_01[sep]) -> 1,208,000 | L27: =SUM(tblExpenseCategory_01[oct]) -> 1,158,000 | M27: =SUM(tblExpenseCategory_01[nov]) -> 1,208,000 | N27: =SUM(tblExpenseCategory_01[dec]) -> 1,208,000 | O27: =SUM(tblExpenseCategory_01[year]) -> 14,596,000 | P27: =tblExpenseCategory_01[[#Totals],[year]]/12 -> 1,216,333
B30: 생활
B31: 식료품 | C31: 345,000 | D31: 250,000 | E31: 200,000 | F31: 400,000 | G31: 350,000 | H31: 250,000 | I31: 400,000 | J31: 350,000 | K31: 250,000 | L31: 400,000 | M31: 350,000 | N31: 250,000 | O31: =SUM(tblExpenseCategory_02[[#This Row],[jan]:[dec]]) -> 3,795,000 | P31: =tblExpenseCategory_02[[#This Row],[year]]/12 -> 316,250
B32: 의복 | C32: 300,000 | F32: 300,000 | I32: 300,000 | L32: 300,000 | O32: =SUM(tblExpenseCategory_02[[#This Row],[jan]:[dec]]) -> 1,200,000 | P32: =tblExpenseCategory_02[[#This Row],[year]]/12 -> 100,000
B33: 외식 | C33: 125,000 | D33: 125,000 | E33: 300,000 | F33: 125,000 | G33: 125,000 | H33: 200,000 | I33: 125,000 | J33: 125,000 | K33: 125,000 | L33: 125,000 | M33: 125,000 | N33: 125,000 | O33: =SUM(tblExpenseCategory_02[[#This Row],[jan]:[dec]]) -> 1,750,000 | P33: =tblExpenseCategory_02[[#This Row],[year]]/12 -> 145,833
B34: 미용 | C34: 25,000 | E34: 50,000 | G34: 25,000 | I34: 50,000 | K34: 25,000 | M34: 100,000 | O34: =SUM(tblExpenseCategory_02[[#This Row],[jan]:[dec]]) -> 275,000 | P34: =tblExpenseCategory_02[[#This Row],[year]]/12 -> 22,917
B35: 기타 | O35: =SUM(tblExpenseCategory_02[[#This Row],[jan]:[dec]]) -> 0 | P35: =tblExpenseCategory_02[[#This Row],[year]]/12 -> 0
B36: =UPPER(B30&" 합계") -> 생활 합계 | C36: =SUM(tblExpenseCategory_02[jan]) -> 795,000 | D36: =SUM(tblExpenseCategory_02[feb]) -> 375,000 | E36: =SUM(tblExpenseCategory_02[mar]) -> 550,000 | F36: =SUM(tblExpenseCategory_02[apr]) -> 825,000 | G36: =SUM(tblExpenseCategory_02[may]) -> 500,000 | H36: =SUM(tblExpenseCategory_02[jun]) -> 450,000 | I36: =SUM(tblExpenseCategory_02[jul]) -> 875,000 | J36: =SUM(tblExpenseCategory_02[aug]) -> 475,000 | K36: =SUM(tblExpenseCategory_02[sep]) -> 400,000 | L36: =SUM(tblExpenseCategory_02[oct]) -> 825,000 | M36: =SUM(tblExpenseCategory_02[nov]) -> 575,000 | N36: =SUM(tblExpenseCategory_02[dec]) -> 375,000 | O36: =SUM(tblExpenseCategory_02[year]) -> 7,020,000 | P36: =tblExpenseCategory_02[[#Totals],[year]]/12 -> 585,000
B39: 양육
B40: 학용품 | C40: 123,000 | E40: 100,000 | J40: 345,000 | O40: =SUM(tblExpenseCategory_03[[#This Row],[jan]:[dec]]) -> 568,000 | P40: =tblExpenseCategory_03[[#This Row],[year]]/12 -> 47,333
B41: 의복 | D41: 100,000 | G41: 100,000 | K41: 100,000 | N41: 100,000 | O41: =SUM(tblExpenseCategory_03[[#This Row],[jan]:[dec]]) -> 400,000 | P41: =tblExpenseCategory_03[[#This Row],[year]]/12 -> 33,333
B42: 학교 급식 | C42: 50,000 | D42: 50,000 | E42: 50,000 | F42: 50,000 | G42: 50,000 | H42: 50,000 | K42: 50,000 | L42: 50,000 | M42: 50,000 | N42: 50,000 | O42: =SUM(tblExpenseCategory_03[[#This Row],[jan]:[dec]]) -> 500,000 | P42: =tblExpenseCategory_03[[#This Row],[year]]/12 -> 41,667
B43: 의료 | C43: 200,000 | D43: 200,000 | E43: 200,000 | F43: 200,000 | G43: 200,000 | H43: 200,000 | I43: 200,000 | J43: 200,000 | K43: 200,000 | L43: 200,000 | M43: 200,000 | N43: 200,000 | O43: =SUM(tblExpenseCategory_03[[#This Row],[jan]:[dec]]) -> 2,400,000 | P43: =tblExpenseCategory_03[[#This Row],[year]]/12 -> 200,000
B44: 기타 | C44: 2,000,000 | D44: 150,000 | H44: 200,000 | L44: 100,000 | O44: =SUM(tblExpenseCategory_03[[#This Row],[jan]:[dec]]) -> 2,450,000 | P44: =tblExpenseCategory_03[[#This Row],[year]]/12 -> 204,167
B45: =UPPER(B39&" 합계") -> 양육 합계 | C45: =SUM(tblExpenseCategory_03[jan]) -> 2,373,000 | D45: =SUM(tblExpenseCategory_03[feb]) -> 500,000 | E45: =SUM(tblExpenseCategory_03[mar]) -> 350,000 | F45: =SUM(tblExpenseCategory_03[apr]) -> 250,000 | G45: =SUM(tblExpenseCategory_03[may]) -> 350,000 | H45: =SUM(tblExpenseCategory_03[jun]) -> 450,000 | I45: =SUM(tblExpenseCategory_03[jul]) -> 200,000 | J45: =SUM(tblExpenseCategory_03[aug]) -> 545,000 | K45: =SUM(tblExpenseCategory_03[sep]) -> 350,000 | L45: =SUM(tblExpenseCategory_03[oct]) -> 350,000 | M45: =SUM(tblExpenseCategory_03[nov]) -> 250,000 | N45: =SUM(tblExpenseCategory_03[dec]) -> 350,000 | O45: =SUM(tblExpenseCategory_03[year]) -> 6,318,000 | P45: =tblExpenseCategory_03[[#Totals],[year]]/12 -> 526,500
B48: 교통
B49: 자동차 할부 | C49: 600,000 | D49: 600,000 | E49: 600,000 | F49: 600,000 | G49: 600,000 | H49: 600,000 | I49: 600,000 | J49: 600,000 | K49: 600,000 | L49: 600,000 | M49: 600,000 | N49: 600,000 | O49: =SUM(tblExpenseCategory_04[[#This Row],[jan]:[dec]]) -> 7,200,000 | P49: =tblExpenseCategory_04[[#This Row],[year]]/12 -> 600,000
B50: 연료 | C50: 325,000 | D50: 325,000 | E50: 325,000 | F50: 325,000 | G50: 325,000 | H50: 500,000 | I50: 500,000 | J50: 500,000 | K50: 325,000 | L50: 325,000 | M50: 325,000 | N50: 325,000 | O50: =SUM(tblExpenseCategory_04[[#This Row],[jan]:[dec]]) -> 4,425,000 | P50: =tblExpenseCategory_04[[#This Row],[year]]/12 -> 368,750
B51: 수리 | D51: 100,000 | F51: 100,000 | H51: 100,000 | J51: 100,000 | L51: 100,000 | O51: =SUM(tblExpenseCategory_04[[#This Row],[jan]:[dec]]) -> 500,000 | P51: =tblExpenseCategory_04[[#This Row],[year]]/12 -> 41,667
B52: 등록/면허증 | C52: 185,000 | K52: 225,000 | O52: =SUM(tblExpenseCategory_04[[#This Row],[jan]:[dec]]) -> 410,000 | P52: =tblExpenseCategory_04[[#This Row],[year]]/12 -> 34,167
B53: 기타 | G53: 400,000 | O53: =SUM(tblExpenseCategory_04[[#This Row],[jan]:[dec]]) -> 400,000 | P53: =tblExpenseCategory_04[[#This Row],[year]]/12 -> 33,333
B54: =UPPER(B48&" 합계") -> 교통 합계 | C54: =SUM(tblExpenseCategory_04[jan]) -> 1,110,000 | D54: =SUM(tblExpenseCategory_04[feb]) -> 1,025,000 | E54: =SUM(tblExpenseCategory_04[mar]) -> 925,000 | F54: =SUM(tblExpenseCategory_04[apr]) -> 1,025,000 | G54: =SUM(tblExpenseCategory_04[may]) -> 1,325,000 | H54: =SUM(tblExpenseCategory_04[jun]) -> 1,200,000 | I54: =SUM(tblExpenseCategory_04[jul]) -> 1,100,000 | J54: =SUM(tblExpenseCategory_04[aug]) -> 1,200,000 | K54: =SUM(tblExpenseCategory_04[sep]) -> 1,150,000 | L54: =SUM(tblExpenseCategory_04[oct]) -> 1,025,000 | M54: =SUM(tblExpenseCategory_04[nov]) -> 925,000 | N54: =SUM(tblExpenseCategory_04[dec]) -> 925,000 | O54: =SUM(tblExpenseCategory_04[year]) -> 12,935,000 | P54: =tblExpenseCategory_04[[#Totals],[year]]/12 -> 1,077,917
B57: 건강
B58: 병원/치과 | D58: 35,000 | G58: 35,000 | H58: 35,000 | I58: 35,000 | L58: 35,000 | O58: =SUM(tblExpenseCategory_05[[#This Row],[jan]:[dec]]) -> 175,000 | P58: =tblExpenseCategory_05[[#This Row],[year]]/12 -> 14,583
B59: 의약품/약물 | C59: 25,000 | D59: 25,000 | E59: 25,000 | F59: 25,000 | G59: 25,000 | H59: 25,000 | I59: 25,000 | J59: 25,000 | K59: 25,000 | L59: 25,000 | M59: 25,000 | N59: 25,000 | O59: =SUM(tblExpenseCategory_05[[#This Row],[jan]:[dec]]) -> 300,000 | P59: =tblExpenseCategory_05[[#This Row],[year]]/12 -> 25,000
B60: 기타 | E60: 150,000 | K60: 150,000 | O60: =SUM(tblExpenseCategory_05[[#This Row],[jan]:[dec]]) -> 300,000 | P60: =tblExpenseCategory_05[[#This Row],[year]]/12 -> 25,000
B61: =UPPER(B57&" 합계") -> 건강 합계 | C61: =SUM(tblExpenseCategory_05[jan]) -> 25,000 | D61: =SUM(tblExpenseCategory_05[feb]) -> 60,000 | E61: =SUM(tblExpenseCategory_05[mar]) -> 175,000 | F61: =SUM(tblExpenseCategory_05[apr]) -> 25,000 | G61: =SUM(tblExpenseCategory_05[may]) -> 60,000 | H61: =SUM(tblExpenseCategory_05[jun]) -> 60,000 | I61: =SUM(tblExpenseCategory_05[jul]) -> 60,000 | J61: =SUM(tblExpenseCategory_05[aug]) -> 25,000 | K61: =SUM(tblExpenseCategory_05[sep]) -> 175,000 | L61: =SUM(tblExpenseCategory_05[oct]) -> 60,000 | M61: =SUM(tblExpenseCategory_05[nov]) -> 25,000 | N61: =SUM(tblExpenseCategory_05[dec]) -> 25,000 | O61: =SUM(tblExpenseCategory_05[year]) -> 775,000 | P61: =tblExpenseCategory_05[[#Totals],[year]]/12 -> 64,583
B64: 보험
B65: 자동차 보험 | C65: 150,000 | D65: 150,000 | E65: 150,000 | F65: 150,000 | G65: 150,000 | H65: 150,000 | I65: 150,000 | J65: 150,000 | K65: 150,000 | L65: 150,000 | M65: 150,000 | N65: 150,000 | O65: =SUM(tblExpenseCategory_06[[#This Row],[jan]:[dec]]) -> 1,800,000 | P65: =tblExpenseCategory_06[[#This Row],[year]]/12 -> 150,000
B66: 건강 | C66: 675,000 | D66: 675,000 | E66: 675,000 | F66: 675,000 | G66: 675,000 | H66: 675,000 | I66: 675,000 | J66: 675,000 | K66: 675,000 | L66: 675,000 | M66: 675,000 | N66: 675,000 | O66: =SUM(tblExpenseCategory_06[[#This Row],[jan]:[dec]]) -> 8,100,000 | P66: =tblExpenseCategory_06[[#This Row],[year]]/12 -> 675,000
B67: 생명 보험 | C67: 150,000 | D67: 150,000 | E67: 150,000 | F67: 150,000 | G67: 150,000 | H67: 150,000 | I67: 150,000 | J67: 150,000 | K67: 150,000 | L67: 150,000 | M67: 150,000 | N67: 150,000 | O67: =SUM(tblExpenseCategory_06[[#This Row],[jan]:[dec]]) -> 1,800,000 | P67: =tblExpenseCategory_06[[#This Row],[year]]/12 -> 150,000
B68: =UPPER(B64&" 합계") -> 보험 합계 | C68: =SUM(tblExpenseCategory_06[jan]) -> 975,000 | D68: =SUM(tblExpenseCategory_06[feb]) -> 975,000 | E68: =SUM(tblExpenseCategory_06[mar]) -> 975,000 | F68: =SUM(tblExpenseCategory_06[apr]) -> 975,000 | G68: =SUM(tblExpenseCategory_06[may]) -> 975,000 | H68: =SUM(tblExpenseCategory_06[jun]) -> 975,000 | I68: =SUM(tblExpenseCategory_06[jul]) -> 975,000 | J68: =SUM(tblExpenseCategory_06[aug]) -> 975,000 | K68: =SUM(tblExpenseCategory_06[sep]) -> 975,000 | L68: =SUM(tblExpenseCategory_06[oct]) -> 975,000 | M68: =SUM(tblExpenseCategory_06[nov]) -> 975,000 | N68: =SUM(tblExpenseCategory_06[dec]) -> 975,000 | O68: =SUM(tblExpenseCategory_06[year]) -> 11,700,000 | P68: =tblExpenseCategory_06[[#Totals],[year]]/12 -> 975,000
B71: 교육
B72: 등록금 | E72: 400,000 | K72: 400,000 | O72: =SUM(tblExpenseCategory_07[[#This Row],[jan]:[dec]]) -> 800,000 | P72: =tblExpenseCategory_07[[#This Row],[year]]/12 -> 66,667
B73: 교재 | E73: 225,000 | K73: 225,000 | O73: =SUM(tblExpenseCategory_07[[#This Row],[jan]:[dec]]) -> 450,000 | P73: =tblExpenseCategory_07[[#This Row],[year]]/12 -> 37,500
B74: 기타 | O74: =SUM(tblExpenseCategory_07[[#This Row],[jan]:[dec]]) -> 0 | P74: =tblExpenseCategory_07[[#This Row],[year]]/12 -> 0
B75: =UPPER(B71&" 합계") -> 교육 합계 | C75: =SUM(tblExpenseCategory_07[jan]) -> 0 | D75: =SUM(tblExpenseCategory_07[feb]) -> 0 | E75: =SUM(tblExpenseCategory_07[mar]) -> 625,000 | F75: =SUM(tblExpenseCategory_07[apr]) -> 0 | G75: =SUM(tblExpenseCategory_07[may]) -> 0 | H75: =SUM(tblExpenseCategory_07[jun]) -> 0 | I75: =SUM(tblExpenseCategory_07[jul]) -> 0 | J75: =SUM(tblExpenseCategory_07[aug]) -> 0 | K75: =SUM(tblExpenseCategory_07[sep]) -> 625,000 | L75: =SUM(tblExpenseCategory_07[oct]) -> 0 | M75: =SUM(tblExpenseCategory_07[nov]) -> 0 | N75: =SUM(tblExpenseCategory_07[dec]) -> 0 | O75: =SUM(tblExpenseCategory_07[year]) -> 1,250,000 | P75: =tblExpenseCategory_07[[#Totals],[year]]/12 -> 104,167
B78: 기부
B79: 선물 | D79: 100,000 | H79: 100,000 | L79: 100,000 | O79: =SUM(tblExpenseCategory_08[[#This Row],[jan]:[dec]]) -> 300,000 | P79: =tblExpenseCategory_08[[#This Row],[year]]/12 -> 25,000
B80: 자선 기부 | E80: 100,000 | G80: 100,000 | I80: 100,000 | K80: 100,000 | M80: 100,000 | O80: =SUM(tblExpenseCategory_08[[#This Row],[jan]:[dec]]) -> 500,000 | P80: =tblExpenseCategory_08[[#This Row],[year]]/12 -> 41,667
B81: 기타 | F81: 100,000 | J81: 100,000 | N81: 100,000 | O81: =SUM(tblExpenseCategory_08[[#This Row],[jan]:[dec]]) -> 300,000 | P81: =tblExpenseCategory_08[[#This Row],[year]]/12 -> 25,000
B82: =UPPER(B78&" 합계") -> 기부 합계 | C82: =SUM(tblExpenseCategory_08[jan]) -> 0 | D82: =SUM(tblExpenseCategory_08[feb]) -> 100,000 | E82: =SUM(tblExpenseCategory_08[mar]) -> 100,000 | F82: =SUM(tblExpenseCategory_08[apr]) -> 100,000 | G82: =SUM(tblExpenseCategory_08[may]) -> 100,000 | H82: =SUM(tblExpenseCategory_08[jun]) -> 100,000 | I82: =SUM(tblExpenseCategory_08[jul]) -> 100,000 | J82: =SUM(tblExpenseCategory_08[aug]) -> 100,000 | K82: =SUM(tblExpenseCategory_08[sep]) -> 100,000 | L82: =SUM(tblExpenseCategory_08[oct]) -> 100,000 | M82: =SUM(tblExpenseCategory_08[nov]) -> 100,000 | N82: =SUM(tblExpenseCategory_08[dec]) -> 100,000 | O82: =SUM(tblExpenseCategory_08[year]) -> 1,100,000 | P82: =tblExpenseCategory_08[[#Totals],[year]]/12 -> 91,667
B85: 저축
B86: 비상금 | C86: 100,000 | D86: 100,000 | E86: 100,000 | F86: 100,000 | G86: 100,000 | K86: 100,000 | L86: 100,000 | M86: 100,000 | N86: 100,000 | O86: =SUM(tblExpenseCategory_09[[#This Row],[jan]:[dec]]) -> 900,000 | P86: =tblExpenseCategory_09[[#This Row],[year]]/12 -> 75,000
B87: 연금 | C87: 500,000 | D87: 500,000 | E87: 500,000 | F87: 500,000 | G87: 500,000 | H87: 500,000 | I87: 500,000 | J87: 500,000 | K87: 500,000 | L87: 500,000 | M87: 500,000 | N87: 500,000 | O87: =SUM(tblExpenseCategory_09[[#This Row],[jan]:[dec]]) -> 6,000,000 | P87: =tblExpenseCategory_09[[#This Row],[year]]/12 -> 500,000
B88: 적금 | C88: 200,000 | D88: 200,000 | E88: 200,000 | F88: 200,000 | G88: 200,000 | K88: 200,000 | L88: 200,000 | M88: 200,000 | N88: 200,000 | O88: =SUM(tblExpenseCategory_09[[#This Row],[jan]:[dec]]) -> 1,800,000 | P88: =tblExpenseCategory_09[[#This Row],[year]]/12 -> 150,000
B89: =UPPER(B85&" 합계") -> 저축 합계 | C89: =SUM(tblExpenseCategory_09[jan]) -> 800,000 | D89: =SUM(tblExpenseCategory_09[feb]) -> 800,000 | E89: =SUM(tblExpenseCategory_09[mar]) -> 800,000 | F89: =SUM(tblExpenseCategory_09[apr]) -> 800,000 | G89: =SUM(tblExpenseCategory_09[may]) -> 800,000 | H89: =SUM(tblExpenseCategory_09[jun]) -> 500,000 | I89: =SUM(tblExpenseCategory_09[jul]) -> 500,000 | J89: =SUM(tblExpenseCategory_09[aug]) -> 500,000 | K89: =SUM(tblExpenseCategory_09[sep]) -> 800,000 | L89: =SUM(tblExpenseCategory_09[oct]) -> 800,000 | M89: =SUM(tblExpenseCategory_09[nov]) -> 800,000 | N89: =SUM(tblExpenseCategory_09[dec]) -> 800,000 | O89: =SUM(tblExpenseCategory_09[year]) -> 8,700,000 | P89: =tblExpenseCategory_09[[#Totals],[year]]/12 -> 725,000
B92: 채무
B93: 신용 카드 1 | C93: 145,000 | D93: 145,000 | E93: 145,000 | F93: 145,000 | G93: 145,000 | H93: 145,000 | I93: 145,000 | J93: 145,000 | K93: 145,000 | L93: 145,000 | M93: 145,000 | N93: 145,000 | O93: =SUM(tblExpenseCategory_10[[#This Row],[jan]:[dec]]) -> 1,740,000 | P93: =tblExpenseCategory_10[[#This Row],[year]]/12 -> 145,000
B94: 국세 | C94: 450,000 | F94: 450,000 | I94: 450,000 | L94: 450,000 | O94: =SUM(tblExpenseCategory_10[[#This Row],[jan]:[dec]]) -> 1,800,000 | P94: =tblExpenseCategory_10[[#This Row],[year]]/12 -> 150,000
B95: 학자금 대출 | C95: 55,000 | D95: 55,000 | E95: 55,000 | F95: 55,000 | G95: 55,000 | H95: 55,000 | I95: 55,000 | J95: 55,000 | K95: 55,000 | L95: 55,000 | M95: 55,000 | N95: 55,000 | O95: =SUM(tblExpenseCategory_10[[#This Row],[jan]:[dec]]) -> 660,000 | P95: =tblExpenseCategory_10[[#This Row],[year]]/12 -> 55,000
B96: =UPPER(B92&" 합계") -> 채무 합계 | C96: =SUM(tblExpenseCategory_10[jan]) -> 650,000 | D96: =SUM(tblExpenseCategory_10[feb]) -> 200,000 | E96: =SUM(tblExpenseCategory_10[mar]) -> 200,000 | F96: =SUM(tblExpenseCategory_10[apr]) -> 650,000 | G96: =SUM(tblExpenseCategory_10[may]) -> 200,000 | H96: =SUM(tblExpenseCategory_10[jun]) -> 200,000 | I96: =SUM(tblExpenseCategory_10[jul]) -> 650,000 | J96: =SUM(tblExpenseCategory_10[aug]) -> 200,000 | K96: =SUM(tblExpenseCategory_10[sep]) -> 200,000 | L96: =SUM(tblExpenseCategory_10[oct]) -> 650,000 | M96: =SUM(tblExpenseCategory_10[nov]) -> 200,000 | N96: =SUM(tblExpenseCategory_10[dec]) -> 200,000 | O96: =SUM(tblExpenseCategory_10[year]) -> 4,200,000 | P96: =tblExpenseCategory_10[[#Totals],[year]]/12 -> 350,000
O100: =SUM(tblExpenseCategory_11[[#This Row],[jan]:[dec]]) -> 0 | P100: =tblExpenseCategory_11[[#This Row],[year]]/12 -> 0
O101: =SUM(tblExpenseCategory_11[[#This Row],[jan]:[dec]]) -> 0 | P101: =tblExpenseCategory_11[[#This Row],[year]]/12 -> 0
O102: =SUM(tblExpenseCategory_11[[#This Row],[jan]:[dec]]) -> 0 | P102: =tblExpenseCategory_11[[#This Row],[year]]/12 -> 0
B103: =UPPER(B99&" 합계") -> 합계 | C103: =SUM(tblExpenseCategory_11[jan]) -> 0 | D103: =SUM(tblExpenseCategory_11[feb]) -> 0 | E103: =SUM(tblExpenseCategory_11[mar]) -> 0 | F103: =SUM(tblExpenseCategory_11[apr]) -> 0 | G103: =SUM(tblExpenseCategory_11[may]) -> 0 | H103: =SUM(tblExpenseCategory_11[jun]) -> 0 | I103: =SUM(tblExpenseCategory_11[jul]) -> 0 | J103: =SUM(tblExpenseCategory_11[aug]) -> 0 | K103: =SUM(tblExpenseCategory_11[sep]) -> 0 | L103: =SUM(tblExpenseCategory_11[oct]) -> 0 | M103: =SUM(tblExpenseCategory_11[nov]) -> 0 | N103: =SUM(tblExpenseCategory_11[dec]) -> 0 | O103: =SUM(tblExpenseCategory_11[year]) -> 0 | P103: =tblExpenseCategory_11[[#Totals],[year]]/12 -> 0
O107: =SUM(tblExpenseCategory_12[[#This Row],[jan]:[dec]]) -> 0 | P107: =tblExpenseCategory_12[[#This Row],[year]]/12 -> 0
O108: =SUM(tblExpenseCategory_12[[#This Row],[jan]:[dec]]) -> 0 | P108: =tblExpenseCategory_12[[#This Row],[year]]/12 -> 0
O109: =SUM(tblExpenseCategory_12[[#This Row],[jan]:[dec]]) -> 0 | P109: =tblExpenseCategory_12[[#This Row],[year]]/12 -> 0
B110: =UPPER(B106&" 합계") -> 합계 | C110: =SUM(tblExpenseCategory_12[jan]) -> 0 | D110: =SUM(tblExpenseCategory_12[feb]) -> 0 | E110: =SUM(tblExpenseCategory_12[mar]) -> 0 | F110: =SUM(tblExpenseCategory_12[apr]) -> 0 | G110: =SUM(tblExpenseCategory_12[may]) -> 0 | H110: =SUM(tblExpenseCategory_12[jun]) -> 0 | I110: =SUM(tblExpenseCategory_12[jul]) -> 0 | J110: =SUM(tblExpenseCategory_12[aug]) -> 0 | K110: =SUM(tblExpenseCategory_12[sep]) -> 0 | L110: =SUM(tblExpenseCategory_12[oct]) -> 0 | M110: =SUM(tblExpenseCategory_12[nov]) -> 0 | N110: =SUM(tblExpenseCategory_12[dec]) -> 0 | O110: =SUM(tblExpenseCategory_12[year]) -> 0 | P110: =tblExpenseCategory_12[[#Totals],[year]]/12 -> 0
O114: =SUM(tblExpenseCategory_13[[#This Row],[jan]:[dec]]) -> 0 | P114: =tblExpenseCategory_13[[#This Row],[year]]/12 -> 0
O115: =SUM(tblExpenseCategory_13[[#This Row],[jan]:[dec]]) -> 0 | P115: =tblExpenseCategory_13[[#This Row],[year]]/12 -> 0
O116: =SUM(tblExpenseCategory_13[[#This Row],[jan]:[dec]]) -> 0 | P116: =tblExpenseCategory_13[[#This Row],[year]]/12 -> 0
B117: =UPPER(B113&" 합계") -> 합계 | C117: =SUM(tblExpenseCategory_13[jan]) -> 0 | D117: =SUM(tblExpenseCategory_13[feb]) -> 0 | E117: =SUM(tblExpenseCategory_13[mar]) -> 0 | F117: =SUM(tblExpenseCategory_13[apr]) -> 0 | G117: =SUM(tblExpenseCategory_13[may]) -> 0 | H117: =SUM(tblExpenseCategory_13[jun]) -> 0 | I117: =SUM(tblExpenseCategory_13[jul]) -> 0 | J117: =SUM(tblExpenseCategory_13[aug]) -> 0 | K117: =SUM(tblExpenseCategory_13[sep]) -> 0 | L117: =SUM(tblExpenseCategory_13[oct]) -> 0 | M117: =SUM(tblExpenseCategory_13[nov]) -> 0 | N117: =SUM(tblExpenseCategory_13[dec]) -> 0 | O117: =SUM(tblExpenseCategory_13[year]) -> 0 | P117: =tblExpenseCategory_13[[#Totals],[year]]/12 -> 0
O121: =SUM(tblExpenseCategory_14[[#This Row],[jan]:[dec]]) -> 0 | P121: =tblExpenseCategory_14[[#This Row],[year]]/12 -> 0
O122: =SUM(tblExpenseCategory_14[[#This Row],[jan]:[dec]]) -> 0 | P122: =tblExpenseCategory_14[[#This Row],[year]]/12 -> 0
O123: =SUM(tblExpenseCategory_14[[#This Row],[jan]:[dec]]) -> 0 | P123: =tblExpenseCategory_14[[#This Row],[year]]/12 -> 0
B124: =UPPER(B120&" 합계") -> 합계 | C124: =SUM(tblExpenseCategory_14[jan]) -> 0 | D124: =SUM(tblExpenseCategory_14[feb]) -> 0 | E124: =SUM(tblExpenseCategory_14[mar]) -> 0 | F124: =SUM(tblExpenseCategory_14[apr]) -> 0 | G124: =SUM(tblExpenseCategory_14[may]) -> 0 | H124: =SUM(tblExpenseCategory_14[jun]) -> 0 | I124: =SUM(tblExpenseCategory_14[jul]) -> 0 | J124: =SUM(tblExpenseCategory_14[aug]) -> 0 | K124: =SUM(tblExpenseCategory_14[sep]) -> 0 | L124: =SUM(tblExpenseCategory_14[oct]) -> 0 | M124: =SUM(tblExpenseCategory_14[nov]) -> 0 | N124: =SUM(tblExpenseCategory_14[dec]) -> 0 | O124: =SUM(tblExpenseCategory_14[year]) -> 0 | P124: =tblExpenseCategory_14[[#Totals],[year]]/12 -> 0
O128: =SUM(tblExpenseCategory_15[[#This Row],[jan]:[dec]]) -> 0 | P128: =tblExpenseCategory_15[[#This Row],[year]]/12 -> 0
O129: =SUM(tblExpenseCategory_15[[#This Row],[jan]:[dec]]) -> 0 | P129: =tblExpenseCategory_15[[#This Row],[year]]/12 -> 0
O130: =SUM(tblExpenseCategory_15[[#This Row],[jan]:[dec]]) -> 0 | P130: =tblExpenseCategory_15[[#This Row],[year]]/12 -> 0
B131: =UPPER(B127&" 합계") -> 합계 | C131: =SUM(tblExpenseCategory_15[jan]) -> 0 | D131: =SUM(tblExpenseCategory_15[feb]) -> 0 | E131: =SUM(tblExpenseCategory_15[mar]) -> 0 | F131: =SUM(tblExpenseCategory_15[apr]) -> 0 | G131: =SUM(tblExpenseCategory_15[may]) -> 0 | H131: =SUM(tblExpenseCategory_15[jun]) -> 0 | I131: =SUM(tblExpenseCategory_15[jul]) -> 0 | J131: =SUM(tblExpenseCategory_15[aug]) -> 0 | K131: =SUM(tblExpenseCategory_15[sep]) -> 0 | L131: =SUM(tblExpenseCategory_15[oct]) -> 0 | M131: =SUM(tblExpenseCategory_15[nov]) -> 0 | N131: =SUM(tblExpenseCategory_15[dec]) -> 0 | O131: =SUM(tblExpenseCategory_15[year]) -> 0 | P131: =tblExpenseCategory_15[[#Totals],[year]]/12 -> 0

Sheet 설정
B1: 2012년 오태준님 가계
B2: 수입 | D2: 지출
B3: 급여 및 보너스
B4: 이자 소득 | D4: 주거 | F4: 주거 | H4: 생활 | J4: 양육
B5: 배당금 | D5: 생활 | F5: 담보 대출/임대료 | H5: 식료품 | J5: 의료
B6: 선물 | D6: 양육 | F6: 전기 | H6: 개인용품 | J6: 의복
B7: 환불/배상 | D7: 교통 | F7: 가스/연료 | H7: 의복 | J7: 학교 등록금
B8: 적금 | D8: 건강 | F8: 상/하수도/쓰레기 | H8: 청소 서비스 | J8: 학교 급식
B9: 기타 | D9: 보험 | F9: 전화 | H9: 외식 | J9: 학용품
D10: 교육 | F10: 케이블/위성 | H10: 세탁 | J10: 탁아
D11: 기부 | F11: 인터넷 | H11: 미용 | J11: 장난감/게임
D12: 저축 | F12: 가구/가전 | H12: 기타 | J12: 기타
D13: 채무 | F13: 원예
D14: 여가 | F14: 가정용품
D15: 애완 동물 | F15: 유지 관리
D16: 구독 | F16: 개조
D17: 휴가 | F17: 기타
D18: 기타
F20: 교통 | H20: 건강 | J20: 보험
F21: 자동차 할부 | H21: 병원/치과 | J21: 자동차 보험
F22: 연료 | H22: 의약품/약물 | J22: 건강
F23: 버스/택시/지하철 요금 | H23: 헬스 클럽 회비 | J23: 주택/임대 보험
F24: 수리 | H24: 응급 서비스 | J24: 생명 보험
F25: 등록/면허증 | H25: 기타 | J25: 기타
F26: 기타
F29: 교육 | H29: 기부 | J29: 저축
F30: 등록금 | H30: 선물 | J30: 비상금
F31: 교재 | H31: 자선 기부 | J31: 적금
F32: 음악 교습 | H32: 종교 단체 기부 | J32: 연금
F33: 기타 | H33: 기타 | J33: 투자
J34: 학자금
J35: 기타
F38: 채무 | H38: 여가 | J38: 애완 동물
F39: 학자금 대출 | H39: 비디오/DVD | J39: 사료
F40: 기타 대출 | H40: 음악 | J40: 의료
F41: 신용 카드 1 | H41: 게임 | J41: 장난감/용품
F42: 신용 카드 2 | H42: 임대 | J42: 기타
F43: 신용 카드 3 | H43: 영화/극장
F44: 위자료/양육비 | H44: 콘서트/경기
F45: 지방세 | H45: 교재
F46: 재산세 | H46: 취미
F47: 국세 | H47: 필름/사진
F48: 관리비 | H48: 스포츠
F49: 법적 비용 | H49: 실외 활동
F50: 기타 | H50: 장난감/장비
H51: 기타
F53: 구독 | H53: 휴가 | J53: 기타
F54: 신문 | H54: 여행 | J54: 은행 수수료
F55: 잡지 | H55: 숙박 | J55: 우편 요금
F56: 회비 | H56: 사료 | J56: 기타
F57: 클럽 회원권 | H57: 렌터카
F58: 기타 | H58: 여가
H59: 기타

Sheet 차트 데이터 (hidden)
B1: 1월 | C1: 2월 | D1: 3월 | E1: 4월 | F1: 5월 | G1: 6월 | H1: 7월 | I1: 8월 | J1: 9월 | K1: 10월 | L1: 11월 | M1: 12월 | N1: 연간 | O1: 평균
B4: 기간 | C4: 3
C6: 1월 | D6: 2월 | E6: 3월 | F6: 4월 | G6: 5월 | H6: 6월 | I6: 7월 | J6: 8월 | K6: 9월 | L6: 10월 | M6: 11월 | N6: 12월 | O6: 연간 | P6: 평균
B7: =LOWER(예산!B127) ->  | C7: =SUM(tblExpenseCategory_15[jan]) -> 0 | D7: =SUM(tblExpenseCategory_15[feb]) -> 0 | E7: =SUM(tblExpenseCategory_15[mar]) -> 0 | F7: =SUM(tblExpenseCategory_15[apr]) -> 0 | G7: =SUM(tblExpenseCategory_15[may]) -> 0 | H7: =SUM(tblExpenseCategory_15[jun]) -> 0 | I7: =SUM(tblExpenseCategory_15[jul]) -> 0 | J7: =SUM(tblExpenseCategory_15[aug]) -> 0 | K7: =SUM(tblExpenseCategory_15[sep]) -> 0 | L7: =SUM(tblExpenseCategory_15[oct]) -> 0 | M7: =SUM(tblExpenseCategory_15[nov]) -> 0 | N7: =SUM(tblExpenseCategory_15[dec]) -> 0 | O7: =SUM(tblExpenseCategory_15[year]) -> 0 | P7: =SUM(tblExpenseCategory_15[avg]) -> 0
B8: =LOWER(예산!B120) ->  | C8: =SUM(tblExpenseCategory_14[jan]) -> 0 | D8: =SUM(tblExpenseCategory_14[feb]) -> 0 | E8: =SUM(tblExpenseCategory_14[mar]) -> 0 | F8: =SUM(tblExpenseCategory_14[apr]) -> 0 | G8: =SUM(tblExpenseCategory_14[may]) -> 0 | H8: =SUM(tblExpenseCategory_14[jun]) -> 0 | I8: =SUM(tblExpenseCategory_14[jul]) -> 0 | J8: =SUM(tblExpenseCategory_14[aug]) -> 0 | K8: =SUM(tblExpenseCategory_14[sep]) -> 0 | L8: =SUM(tblExpenseCategory_14[oct]) -> 0 | M8: =SUM(tblExpenseCategory_14[nov]) -> 0 | N8: =SUM(tblExpenseCategory_14[dec]) -> 0 | O8: =SUM(tblExpenseCategory_14[year]) -> 0 | P8: =SUM(tblExpenseCategory_14[avg]) -> 0
B9: =LOWER(예산!B113) ->  | C9: =SUM(tblExpenseCategory_13[jan]) -> 0 | D9: =SUM(tblExpenseCategory_13[feb]) -> 0 | E9: =SUM(tblExpenseCategory_13[mar]) -> 0 | F9: =SUM(tblExpenseCategory_13[apr]) -> 0 | G9: =SUM(tblExpenseCategory_13[may]) -> 0 | H9: =SUM(tblExpenseCategory_13[jun]) -> 0 | I9: =SUM(tblExpenseCategory_13[jul]) -> 0 | J9: =SUM(tblExpenseCategory_13[aug]) -> 0 | K9: =SUM(tblExpenseCategory_13[sep]) -> 0 | L9: =SUM(tblExpenseCategory_13[oct]) -> 0 | M9: =SUM(tblExpenseCategory_13[nov]) -> 0 | N9: =SUM(tblExpenseCategory_13[dec]) -> 0 | O9: =SUM(tblExpenseCategory_13[year]) -> 0 | P9: =SUM(tblExpenseCategory_13[avg]) -> 0
B10: =LOWER(예산!B106) ->  | C10: =SUM(tblExpenseCategory_12[jan]) -> 0 | D10: =SUM(tblExpenseCategory_12[feb]) -> 0 | E10: =SUM(tblExpenseCategory_12[mar]) -> 0 | F10: =SUM(tblExpenseCategory_12[apr]) -> 0 | G10: =SUM(tblExpenseCategory_12[may]) -> 0 | H10: =SUM(tblExpenseCategory_12[jun]) -> 0 | I10: =SUM(tblExpenseCategory_12[jul]) -> 0 | J10: =SUM(tblExpenseCategory_12[aug]) -> 0 | K10: =SUM(tblExpenseCategory_12[sep]) -> 0 | L10: =SUM(tblExpenseCategory_12[oct]) -> 0 | M10: =SUM(tblExpenseCategory_12[nov]) -> 0 | N10: =SUM(tblExpenseCategory_12[dec]) -> 0 | O10: =SUM(tblExpenseCategory_12[year]) -> 0 | P10: =SUM(tblExpenseCategory_12[avg]) -> 0
B11: =LOWER(예산!B99) ->  | C11: =SUM(tblExpenseCategory_11[jan]) -> 0 | D11: =SUM(tblExpenseCategory_11[feb]) -> 0 | E11: =SUM(tblExpenseCategory_11[mar]) -> 0 | F11: =SUM(tblExpenseCategory_11[apr]) -> 0 | G11: =SUM(tblExpenseCategory_11[may]) -> 0 | H11: =SUM(tblExpenseCategory_11[jun]) -> 0 | I11: =SUM(tblExpenseCategory_11[jul]) -> 0 | J11: =SUM(tblExpenseCategory_11[aug]) -> 0 | K11: =SUM(tblExpenseCategory_11[sep]) -> 0 | L11: =SUM(tblExpenseCategory_11[oct]) -> 0 | M11: =SUM(tblExpenseCategory_11[nov]) -> 0 | N11: =SUM(tblExpenseCategory_11[dec]) -> 0 | O11: =SUM(tblExpenseCategory_11[year]) -> 0 | P11: =SUM(tblExpenseCategory_11[avg]) -> 0
B12: =LOWER(예산!B92) -> 채무 | C12: =SUM(tblExpenseCategory_10[jan]) -> 650,000 | D12: =SUM(tblExpenseCategory_10[feb]) -> 200,000 | E12: =SUM(tblExpenseCategory_10[mar]) -> 200,000 | F12: =SUM(tblExpenseCategory_10[apr]) -> 650,000 | G12: =SUM(tblExpenseCategory_10[may]) -> 200,000 | H12: =SUM(tblExpenseCategory_10[jun]) -> 200,000 | I12: =SUM(tblExpenseCategory_10[jul]) -> 650,000 | J12: =SUM(tblExpenseCategory_10[aug]) -> 200,000 | K12: =SUM(tblExpenseCategory_10[sep]) -> 200,000 | L12: =SUM(tblExpenseCategory_10[oct]) -> 650,000 | M12: =SUM(tblExpenseCategory_10[nov]) -> 200,000 | N12: =SUM(tblExpenseCategory_10[dec]) -> 200,000 | O12: =SUM(tblExpenseCategory_10[year]) -> 4,200,000 | P12: =SUM(tblExpenseCategory_10[avg]) -> 350,000
B13: =LOWER(예산!B85) -> 저축 | C13: =SUM(tblExpenseCategory_09[jan]) -> 800,000 | D13: =SUM(tblExpenseCategory_09[feb]) -> 800,000 | E13: =SUM(tblExpenseCategory_09[mar]) -> 800,000 | F13: =SUM(tblExpenseCategory_09[apr]) -> 800,000 | G13: =SUM(tblExpenseCategory_09[may]) -> 800,000 | H13: =SUM(tblExpenseCategory_09[jun]) -> 500,000 | I13: =SUM(tblExpenseCategory_09[jul]) -> 500,000 | J13: =SUM(tblExpenseCategory_09[aug]) -> 500,000 | K13: =SUM(tblExpenseCategory_09[sep]) -> 800,000 | L13: =SUM(tblExpenseCategory_09[oct]) -> 800,000 | M13: =SUM(tblExpenseCategory_09[nov]) -> 800,000 | N13: =SUM(tblExpenseCategory_09[dec]) -> 800,000 | O13: =SUM(tblExpenseCategory_09[year]) -> 8,700,000 | P13: =SUM(tblExpenseCategory_09[avg]) -> 725,000
B14: =LOWER(예산!B78) -> 기부 | C14: =SUM(tblExpenseCategory_08[jan]) -> 0 | D14: =SUM(tblExpenseCategory_08[feb]) -> 100,000 | E14: =SUM(tblExpenseCategory_08[mar]) -> 100,000 | F14: =SUM(tblExpenseCategory_08[apr]) -> 100,000 | G14: =SUM(tblExpenseCategory_08[may]) -> 100,000 | H14: =SUM(tblExpenseCategory_08[jun]) -> 100,000 | I14: =SUM(tblExpenseCategory_08[jul]) -> 100,000 | J14: =SUM(tblExpenseCategory_08[aug]) -> 100,000 | K14: =SUM(tblExpenseCategory_08[sep]) -> 100,000 | L14: =SUM(tblExpenseCategory_08[oct]) -> 100,000 | M14: =SUM(tblExpenseCategory_08[nov]) -> 100,000 | N14: =SUM(tblExpenseCategory_08[dec]) -> 100,000 | O14: =SUM(tblExpenseCategory_08[year]) -> 1,100,000 | P14: =SUM(tblExpenseCategory_08[avg]) -> 91,667
B15: =LOWER(예산!B71) -> 교육 | C15: =SUM(tblExpenseCategory_07[jan]) -> 0 | D15: =SUM(tblExpenseCategory_07[feb]) -> 0 | E15: =SUM(tblExpenseCategory_07[mar]) -> 625,000 | F15: =SUM(tblExpenseCategory_07[apr]) -> 0 | G15: =SUM(tblExpenseCategory_07[may]) -> 0 | H15: =SUM(tblExpenseCategory_07[jun]) -> 0 | I15: =SUM(tblExpenseCategory_07[jul]) -> 0 | J15: =SUM(tblExpenseCategory_07[aug]) -> 0 | K15: =SUM(tblExpenseCategory_07[sep]) -> 625,000 | L15: =SUM(tblExpenseCategory_07[oct]) -> 0 | M15: =SUM(tblExpenseCategory_07[nov]) -> 0 | N15: =SUM(tblExpenseCategory_07[dec]) -> 0 | O15: =SUM(tblExpenseCategory_07[year]) -> 1,250,000 | P15: =SUM(tblExpenseCategory_07[avg]) -> 104,167
B16: =LOWER(예산!B64) -> 보험 | C16: =SUM(tblExpenseCategory_06[jan]) -> 975,000 | D16: =SUM(tblExpenseCategory_06[feb]) -> 975,000 | E16: =SUM(tblExpenseCategory_06[mar]) -> 975,000 | F16: =SUM(tblExpenseCategory_06[apr]) -> 975,000 | G16: =SUM(tblExpenseCategory_06[may]) -> 975,000 | H16: =SUM(tblExpenseCategory_06[jun]) -> 975,000 | I16: =SUM(tblExpenseCategory_06[jul]) -> 975,000 | J16: =SUM(tblExpenseCategory_06[aug]) -> 975,000 | K16: =SUM(tblExpenseCategory_06[sep]) -> 975,000 | L16: =SUM(tblExpenseCategory_06[oct]) -> 975,000 | M16: =SUM(tblExpenseCategory_06[nov]) -> 975,000 | N16: =SUM(tblExpenseCategory_06[dec]) -> 975,000 | O16: =SUM(tblExpenseCategory_06[year]) -> 11,700,000 | P16: =SUM(tblExpenseCategory_06[avg]) -> 975,000
B17: =LOWER(예산!B57) -> 건강 | C17: =SUM(tblExpenseCategory_05[jan]) -> 25,000 | D17: =SUM(tblExpenseCategory_05[feb]) -> 60,000 | E17: =SUM(tblExpenseCategory_05[mar]) -> 175,000 | F17: =SUM(tblExpenseCategory_05[apr]) -> 25,000 | G17: =SUM(tblExpenseCategory_05[may]) -> 60,000 | H17: =SUM(tblExpenseCategory_05[jun]) -> 60,000 | I17: =SUM(tblExpenseCategory_05[jul]) -> 60,000 | J17: =SUM(tblExpenseCategory_05[aug]) -> 25,000 | K17: =SUM(tblExpenseCategory_05[sep]) -> 175,000 | L17: =SUM(tblExpenseCategory_05[oct]) -> 60,000 | M17: =SUM(tblExpenseCategory_05[nov]) -> 25,000 | N17: =SUM(tblExpenseCategory_05[dec]) -> 25,000 | O17: =SUM(tblExpenseCategory_05[year]) -> 775,000 | P17: =SUM(tblExpenseCategory_05[avg]) -> 64,583
B18: =LOWER(예산!B48) -> 교통 | C18: =SUM(tblExpenseCategory_04[jan]) -> 1,110,000 | D18: =SUM(tblExpenseCategory_04[feb]) -> 1,025,000 | E18: =SUM(tblExpenseCategory_04[mar]) -> 925,000 | F18: =SUM(tblExpenseCategory_04[apr]) -> 1,025,000 | G18: =SUM(tblExpenseCategory_04[may]) -> 1,325,000 | H18: =SUM(tblExpenseCategory_04[jun]) -> 1,200,000 | I18: =SUM(tblExpenseCategory_04[jul]) -> 1,100,000 | J18: =SUM(tblExpenseCategory_04[aug]) -> 1,200,000 | K18: =SUM(tblExpenseCategory_04[sep]) -> 1,150,000 | L18: =SUM(tblExpenseCategory_04[oct]) -> 1,025,000 | M18: =SUM(tblExpenseCategory_04[nov]) -> 925,000 | N18: =SUM(tblExpenseCategory_04[dec]) -> 925,000 | O18: =SUM(tblExpenseCategory_04[year]) -> 12,935,000 | P18: =SUM(tblExpenseCategory_04[avg]) -> 1,077,917
B19: =LOWER(예산!B39) -> 양육 | C19: =SUM(tblExpenseCategory_03[jan]) -> 2,373,000 | D19: =SUM(tblExpenseCategory_03[feb]) -> 500,000 | E19: =SUM(tblExpenseCategory_03[mar]) -> 350,000 | F19: =SUM(tblExpenseCategory_03[apr]) -> 250,000 | G19: =SUM(tblExpenseCategory_03[may]) -> 350,000 | H19: =SUM(tblExpenseCategory_03[jun]) -> 450,000 | I19: =SUM(tblExpenseCategory_03[jul]) -> 200,000 | J19: =SUM(tblExpenseCategory_03[aug]) -> 545,000 | K19: =SUM(tblExpenseCategory_03[sep]) -> 350,000 | L19: =SUM(tblExpenseCategory_03[oct]) -> 350,000 | M19: =SUM(tblExpenseCategory_03[nov]) -> 250,000 | N19: =SUM(tblExpenseCategory_03[dec]) -> 350,000 | O19: =SUM(tblExpenseCategory_03[year]) -> 6,318,000 | P19: =SUM(tblExpenseCategory_03[avg]) -> 526,500
B20: =LOWER(예산!B30) -> 생활 | C20: =SUM(tblExpenseCategory_02[jan]) -> 795,000 | D20: =SUM(tblExpenseCategory_02[feb]) -> 375,000 | E20: =SUM(tblExpenseCategory_02[mar]) -> 550,000 | F20: =SUM(tblExpenseCategory_02[apr]) -> 825,000 | G20: =SUM(tblExpenseCategory_02[may]) -> 500,000 | H20: =SUM(tblExpenseCategory_02[jun]) -> 450,000 | I20: =SUM(tblExpenseCategory_02[jul]) -> 875,000 | J20: =SUM(tblExpenseCategory_02[aug]) -> 475,000 | K20: =SUM(tblExpenseCategory_02[sep]) -> 400,000 | L20: =SUM(tblExpenseCategory_02[oct]) -> 825,000 | M20: =SUM(tblExpenseCategory_02[nov]) -> 575,000 | N20: =SUM(tblExpenseCategory_02[dec]) -> 375,000 | O20: =SUM(tblExpenseCategory_02[year]) -> 7,020,000 | P20: =SUM(tblExpenseCategory_02[avg]) -> 585,000
B21: =LOWER(예산!B21) -> 주거 | C21: =SUM(tblExpenseCategory_01[jan]) -> 1,208,000 | D21: =SUM(tblExpenseCategory_01[feb]) -> 1,208,000 | E21: =SUM(tblExpenseCategory_01[mar]) -> 1,233,000 | F21: =SUM(tblExpenseCategory_01[apr]) -> 1,208,000 | G21: =SUM(tblExpenseCategory_01[may]) -> 1,158,000 | H21: =SUM(tblExpenseCategory_01[jun]) -> 1,183,000 | I21: =SUM(tblExpenseCategory_01[jul]) -> 1,283,000 | J21: =SUM(tblExpenseCategory_01[aug]) -> 1,333,000 | K21: =SUM(tblExpenseCategory_01[sep]) -> 1,208,000 | L21: =SUM(tblExpenseCategory_01[oct]) -> 1,158,000 | M21: =SUM(tblExpenseCategory_01[nov]) -> 1,208,000 | N21: =SUM(tblExpenseCategory_01[dec]) -> 1,208,000 | O21: =SUM(tblExpenseCategory_01[year]) -> 14,596,000 | P21: =SUM(tblExpenseCategory_01[avg]) -> 1,216,333
B26: 누적 현금 흐름 | C26: =SUM(예산!$C$8:C$8) -> -3,714,000 | D26: =SUM(예산!$C$8:D$8) -> 76,000 | E26: =SUM(예산!$C$8:E$8) -> -1,857,000 | F26: =SUM(예산!$C$8:F$8) -> -3,670,000 | G26: =SUM(예산!$C$8:G$8) -> -138,000 | H26: =SUM(예산!$C$8:H$8) -> -3,731,000 | I26: =SUM(예산!$C$8:I$8) -> -7,974,000 | J26: =SUM(예산!$C$8:J$8) -> -6,827,000 | K26: =SUM(예산!$C$8:K$8) -> -8,810,000 | L26: =SUM(예산!$C$8:L$8) -> -10,753,000 | M26: =SUM(예산!$C$8:M$8) -> -6,811,000 | N26: =SUM(예산!$C$8:N$8) -> -7,769,000 | O26: =SUM(예산!$C$8:O$8) -> -15,538,000
B28: 연간 현금 흐름(양) | C28: =IF(예산!C$8<0,NA(),IF(period+2<>COLUMN(예산!C$8),NA(),예산!C$8)) ->  | D28: =IF(예산!D$8<0,NA(),IF(period+2<>COLUMN(예산!D$8),NA(),예산!D$8)) ->  | E28: =IF(예산!E$8<0,NA(),IF(period+2<>COLUMN(예산!E$8),NA(),예산!E$8)) ->  | F28: =IF(예산!F$8<0,NA(),IF(period+2<>COLUMN(예산!F$8),NA(),예산!F$8)) ->  | G28: =IF(예산!G$8<0,NA(),IF(period+2<>COLUMN(예산!G$8),NA(),예산!G$8)) ->  | H28: =IF(예산!H$8<0,NA(),IF(period+2<>COLUMN(예산!H$8),NA(),예산!H$8)) ->  | I28: =IF(예산!I$8<0,NA(),IF(period+2<>COLUMN(예산!I$8),NA(),예산!I$8)) ->  | J28: =IF(예산!J$8<0,NA(),IF(period+2<>COLUMN(예산!J$8),NA(),예산!J$8)) ->  | K28: =IF(예산!K$8<0,NA(),IF(period+2<>COLUMN(예산!K$8),NA(),예산!K$8)) ->  | L28: =IF(예산!L$8<0,NA(),IF(period+2<>COLUMN(예산!L$8),NA(),예산!L$8)) ->  | M28: =IF(예산!M$8<0,NA(),IF(period+2<>COLUMN(예산!M$8),NA(),예산!M$8)) ->  | N28: =IF(예산!N$8<0,NA(),IF(period+2<>COLUMN(예산!N$8),NA(),예산!N$8)) ->  | O28: =IF(예산!O$8<0,NA(),IF(period+2<>COLUMN(예산!O$8),NA(),예산!O$8)) -> 
B29: 연간 현금 흐름(음) | C29: =IF(예산!C$8>=0,NA(),IF(period+2<>COLUMN(예산!C$8),NA(),예산!C$8)) ->  | D29: =IF(예산!D$8>=0,NA(),IF(period+2<>COLUMN(예산!D$8),NA(),예산!D$8)) ->  | E29: =IF(예산!E$8>=0,NA(),IF(period+2<>COLUMN(예산!E$8),NA(),예산!E$8)) -> -1,933,000 | F29: =IF(예산!F$8>=0,NA(),IF(period+2<>COLUMN(예산!F$8),NA(),예산!F$8)) ->  | G29: =IF(예산!G$8>=0,NA(),IF(period+2<>COLUMN(예산!G$8),NA(),예산!G$8)) ->  | H29: =IF(예산!H$8>=0,NA(),IF(period+2<>COLUMN(예산!H$8),NA(),예산!H$8)) ->  | I29: =IF(예산!I$8>=0,NA(),IF(period+2<>COLUMN(예산!I$8),NA(),예산!I$8)) ->  | J29: =IF(예산!J$8>=0,NA(),IF(period+2<>COLUMN(예산!J$8),NA(),예산!J$8)) ->  | K29: =IF(예산!K$8>=0,NA(),IF(period+2<>COLUMN(예산!K$8),NA(),예산!K$8)) ->  | L29: =IF(예산!L$8>=0,NA(),IF(period+2<>COLUMN(예산!L$8),NA(),예산!L$8)) ->  | M29: =IF(예산!M$8>=0,NA(),IF(period+2<>COLUMN(예산!M$8),NA(),예산!M$8)) ->  | N29: =IF(예산!N$8>=0,NA(),IF(period+2<>COLUMN(예산!N$8),NA(),예산!N$8)) ->  | O29: =IF(예산!O$8>=0,NA(),IF(period+2<>COLUMN(예산!O$8),NA(),예산!O$8)) -> 
B37: =LOWER(display_long_period) -> 3월
B38: =display_long_period & " 수입" -> 3월 수입 | C38: =INDEX(예산!$C$6:$P$6,,period) -> $4,000,000
B39: =display_long_period & " 지출: " & TEXT(INDEX(예산!$C$7:$P$7,,period),"$#,##0") -> 3월 지출: $5,933,000 | C39: =INDEX(예산!$C$7:$P$7,,period) -> $5,933,000
B40: =display_long_period & " 현금 흐름" -> 3월 현금 흐름 | C40: =ABS(INDEX(예산!$C$8:$P$8,,period)) -> $1,933,000 | D40: =REPT("-",INDEX(예산!$C$8:$P$8,,period)<0) -> -
